bitfinex/quotes_BTCUSD_20250408
["timestamp","ask_amount","ask_price","bid_price","bid_amount"]
[1744135145155,0.13918664,77347.0,77340.0,0.012929]
[1744135145362,0.39776264,77347.0,77343.0,0.258588]
[1744135145694,0.12625864,77347.0,77341.0,0.012929]
[1744135145906,0.012927,77357.0,77347.0,0.012928]
[1744135146058,0.258565,77350.0,77346.0,0.271505]
[1744135146257,0.009,77347.0,77346.0,0.272505]
[1744135146463,0.009,77347.0,77346.0,0.001]
[1744135146652,0.009,77347.0,77326.0,0.21044]
[1744135146653,0.012931,77330.0,77326.0,0.21044]
[1744135146848,0.012929,77340.0,77334.0,0.01293]
[1744135147056,0.01293,77335.0,77334.0,0.00991291]
[1744135147250,0.01293,77335.0,77329.0,0.01454085]
[1744135147603,0.271573,77327.0,77326.0,0.21044]
[1744135148013,0.25873832,77327.0,77326.0,0.21044]
[1744135148211,0.29078592,77327.0,77326.0,0.21044]
[1744135148533,0.258652,77324.0,77317.0,0.258674]
[1744135148657,0.258656,77323.0,77317.0,0.258674]
[1744135148857,0.258652,77324.0,77318.0,0.258671]
[1744135149060,0.258661,77322.0,77318.0,0.258671]
[1744135149259,0.012932,77325.0,77319.0,0.012933]
[1744135149502,0.258658,77323.0,77318.0,0.012933]
[1744135149707,9.732e-05,77327.0,77321.0,0.012933]
[1744135149906,9.732e-05,77327.0,77325.0,0.012932]
[1744135150110,9.732e-05,77327.0,77326.0,0.271577]
[1744135150314,9.732e-05,77327.0,77326.0,0.28611785]
[1744135150532,9.732e-05,77327.0,77326.0,0.33461785]
[1744135151858,0.258583,77345.0,77337.0,0.258605]
[1744135152029,0.25868037,77345.0,77339.0,0.271531]
[1744135152229,9.737e-05,77345.0,77341.0,0.258594]
[1744135152443,0.25867937,77345.0,77341.0,0.258593]
[1744135152647,0.012929,77343.0,77337.0,0.01293]
[1744135153016,9.737e-05,77345.0,77344.0,0.258585]
[1744135153254,0.00309737,77345.0,77344.0,0.28605485]
[1744135154968,0.00309737,77345.0,77344.0,0.30989965]
[1744135155235,0.00309737,77345.0,77344.0,0.43615829]
[1744135155376,9.737e-05,77345.0,77344.0,0.52287303]
[1744135155606,9.737e-05,77345.0,77344.0,0.52487303]
[1744135155806,9.737e-05,77345.0,77344.0,0.53679598]
[1744135156037,9.737e-05,77345.0,77344.0,0.53779598]
[1744135156196,0.0004,77369.0,77363.0,0.271447]
[1744135156395,0.0004,77369.0,77363.0,0.28598785]
[1744135156849,0.0004,77369.0,77363.0,0.46074649]
[1744135157076,0.0004,77369.0,77363.0,0.29576974]
[1744135157463,0.0011679,77364.0,77363.0,0.29576974]
[1744135157665,0.0011679,77364.0,77363.0,0.30076974]
[1744135157878,0.0011679,77364.0,77363.0,0.01478189]
[1744135158163,0.5996859,77364.0,77363.0,0.005]
[1744135158371,0.63384269,77364.0,77363.0,0.005]
[1744135158664,0.5986859,77364.0,77363.0,0.005]
[1744135158807,0.5986859,77364.0,77363.0,0.011]
[1744135159006,0.6116109,77364.0,77363.0,0.006]
[1744135159210,0.258521,77363.0,77359.0,0.258534]
[1744135159471,0.258528,77361.0,77358.0,0.00982652]
[1744135159646,0.258568,77349.0,77345.0,0.25858]
[1744135159845,0.012928,77348.0,77343.0,0.2098]
[1744135160047,0.13918664,77348.0,77343.0,0.2098]
[1744135160251,0.012929,77345.0,77343.0,0.2098]
[1744135160447,0.28433971,77345.0,77343.0,0.2098]
[1744135160754,0.01282771,77345.0,77343.0,0.2098]
[1744135160959,0.012928,77347.0,77343.0,0.2098]
[1744135161151,0.258585,77344.0,77343.0,0.2098]
[1744135161903,0.8331442,77344.0,77343.0,0.2098]
[1744135162102,0.271535,77338.0,77337.0,1.02444]
[1744135162394,0.271535,77338.0,77337.0,1.02453737]
[1744135162595,0.271535,77338.0,77337.0,9.737e-05]
[1744135162917,0.258602,77339.0,77337.0,9.737e-05]
[1744135163204,0.271535,77338.0,77337.0,9.737e-05]
[1744135163398,0.73779364,77338.0,77337.0,9.737e-05]
[1744135163602,0.73779364,77338.0,77337.0,0.00309737]
[1744135163754,0.73779364,77338.0,77337.0,0.00609737]
[1744135163959,0.73779364,77338.0,77337.0,0.00309737]
[1744135164183,0.86404909,77338.0,77337.0,0.00309737]
[1744135164905,0.86404909,77338.0,77337.0,9.737e-05]
[1744135165777,0.46625864,77338.0,77337.0,9.737e-05]
[1744135165979,0.012,77338.0,77337.0,0.27363537]
[1744135166186,0.012,77338.0,77337.0,0.25970537]
[1744135166378,0.012,77338.0,77337.0,0.27263537]
[1744135166581,0.019,77338.0,77337.0,0.27363537]
[1744135166790,0.007,77338.0,77337.0,0.27163537]
[1744135167157,0.012,77338.0,77337.0,0.27163537]
[1744135168128,0.017,77338.0,77337.0,0.27163537]
[1744135168364,0.75479364,77338.0,77337.0,9.737e-05]
[1744135168564,0.84198343,77338.0,77337.0,9.737e-05]
[1744135168766,0.75479364,77338.0,77337.0,9.737e-05]
[1744135170970,0.017,77338.0,77337.0,0.27163537]
[1744135171169,0.017,77338.0,77337.0,0.28617622]
[1744135171972,0.012928,77351.0,77344.0,0.271514]
[1744135172178,0.012927,77357.0,77351.0,0.012928]
[1744135172374,0.12625864,77356.0,77350.0,0.012928]
[1744135172577,0.258551,77356.0,77352.0,0.258558]
[1744135172983,0.34,77356.0,77353.0,0.258553]
[1744135173184,0.34,77356.0,77349.0,0.012928]
[1744135173185,0.0001679,77364.0,77357.0,0.012927]
[1744135173389,0.0001679,77364.0,77363.0,0.258521]
[1744135173610,0.0001679,77364.0,77363.0,0.271447]
[1744135174660,0.258535,77359.0,77355.0,0.01454085]
[1744135174795,0.012927,77355.0,77349.0,0.01454085]
[1744135174997,0.012927,77355.0,77349.0,0.02746885]
[1744135175204,0.012927,77354.0,77349.0,0.01454085]
[1744135175403,0.258581,77345.0,77333.0,0.061531]
[1744135175594,0.27151,77345.0,77337.0,0.258605]
[1744135175793,0.27151,77345.0,77336.0,0.01293]
[1744135176018,0.27151,77345.0,77337.0,0.01293]
[1744135176225,0.25858,77346.0,77340.0,0.271526]
[1744135176432,0.25858,77346.0,77342.0,0.258591]
[1744135176631,0.25858,77346.0,77344.0,1.0350479]
[1744135177442,0.258581,77345.0,77344.0,1.0350479]
[1744135177996,0.261581,77345.0,77344.0,1.0370479]
[1744135178224,0.003,77345.0,77344.0,1.0370479]
[1744135178560,0.003,77345.0,77344.0,1.0350479]
[1744135178759,0.003,77345.0,77344.0,1.2936329]
[1744135178963,0.005,77345.0,77344.0,1.32110275]
[1744135179846,0.002,77345.0,77344.0,1.36870275]
[1744135180027,0.002,77345.0,77344.0,1.39257524]
[1744135180247,0.01307762,77364.0,77359.0,0.012926]
[1744135180384,0.01307762,77364.0,77360.0,0.258528]
[1744135180587,0.02600262,77364.0,77356.0,0.258543]
[1744135180795,0.258581,77345.0,77344.0,1.0370479]
[1744135180991,0.258571,77348.0,77344.0,1.0340479]
[1744135181217,0.258554,77353.0,77344.0,1.2976289]
[1744135181418,0.012927,77354.0,77348.0,0.012928]
[1744135181714,0.258505,77368.0,77360.0,0.012926]
[1744135181917,0.598509,77367.0,77363.0,0.258521]
[1744135182115,0.47933626,77364.0,77363.0,0.258521]
[1744135182317,0.35307762,77364.0,77361.0,0.271454]
[1744135182519,0.258522,77363.0,77359.0,0.258534]
[1744135182741,0.61159562,77364.0,77359.0,0.012926]
[1744135182984,0.01307762,77364.0,77363.0,0.258521]
[1744135183190,0.01307762,77364.0,77363.0,0.271447]
[1744135183341,0.0001679,77364.0,77363.0,0.49578785]
[1744135183605,0.0001679,77364.0,77363.0,0.48286185]
[1744135183772,0.0001679,77364.0,77363.0,0.49578785]
[1744135184150,0.0041679,77364.0,77363.0,0.49578785]
[1744135184652,0.0001679,77364.0,77363.0,0.49578785]
[1744135184969,0.0001679,77364.0,77363.0,0.49678785]
[1744135185177,0.0031679,77364.0,77363.0,0.49678785]
[1744135185376,0.0031679,77364.0,77363.0,0.49578785]
[1744135185705,0.0031679,77364.0,77363.0,0.49978785]
[1744135185846,0.0001679,77364.0,77363.0,0.49978785]
[1744135186291,0.0001679,77364.0,77363.0,0.50178785]
[1744135187451,0.0001679,77364.0,77363.0,0.27906185]
[1744135187674,0.0001679,77364.0,77363.0,0.02054085]
[1744135187876,0.2586859,77364.0,77363.0,0.006]
[1744135188074,0.2716109,77364.0,77363.0,0.006]
[1744135188355,0.2716109,77364.0,77363.0,0.002]
[1744135188550,0.258533,77360.0,77357.0,0.20912]
[1744135188791,0.258538,77358.0,77357.0,0.20912]
[1744135188996,0.0001679,77364.0,77358.0,0.258538]
[1744135189197,0.0001679,77364.0,77363.0,0.28598785]
[1744135189398,0.0001679,77364.0,77363.0,0.01454085]
[1744135189570,0.0011679,77364.0,77363.0,0.01454085]
[1744135189784,0.0001679,77364.0,77363.0,0.01454085]
[1744135189974,0.0001679,77364.0,77363.0,0.27306185]
[1744135190171,0.0001679,77364.0,77363.0,0.259521]
[1744135190510,0.0001679,77364.0,77363.0,0.272447]
[1744135191788,0.0011679,77364.0,77363.0,0.272447]
[1744135191914,0.0140929,77364.0,77363.0,0.001]
[1744135192112,0.2726109,77364.0,77363.0,0.001]
[1744135193154,0.2596859,77364.0,77363.0,0.001]
[1744135193358,0.2726109,77364.0,77363.0,0.001]
[1744135193760,0.73886954,77364.0,77363.0,0.001]
[1744135194896,0.258538,77358.0,77357.0,0.20912]
[1744135195298,0.271464,77358.0,77357.0,0.20912]
[1744135195652,0.271464,77358.0,77345.0,0.28604785]
[1744135195653,0.012928,77351.0,77348.0,0.20912]
[1744135195853,0.258557,77353.0,77349.0,0.258568]
[1744135196260,0.258562,77351.0,77348.0,0.480609]
[1744135196675,0.258561,77351.0,77349.0,0.258567]
[1744135196879,0.258561,77351.0,77348.0,0.467681]
[1744135196880,0.258563,77351.0,77348.0,0.467681]
[1744135197053,0.258561,77351.0,77348.0,0.467681]
[1744135197256,0.012927,77354.0,77348.0,0.222048]
[1744135197482,0.258561,77352.0,77349.0,0.258567]
[1744135197683,0.258558,77352.0,77348.0,0.20912]
[1744135197882,0.258568,77349.0,77348.0,0.20912]
[1744135198091,0.3025238,77349.0,77348.0,0.21312]
[1744135198288,0.271496,77349.0,77348.0,0.21312]
[1744135198484,0.271496,77349.0,77348.0,0.20912]
[1744135199008,0.271496,77349.0,77348.0,0.21212]
[1744135199187,0.271496,77349.0,77348.0,0.20912]
[1744135199706,0.274496,77349.0,77348.0,0.20912]
[1744135199914,0.274496,77349.0,77348.0,0.21312]
[1744135200119,0.003,77349.0,77348.0,0.484619]
[1744135200329,0.015928,77349.0,77348.0,0.01454085]
[1744135200484,0.61151,77345.0,77344.0,0.0095679]
[1744135200686,0.01293,77336.0,77326.0,0.258643]
[1744135201037,0.258628,77331.0,77330.0,9.737e-05]
[1744135201435,0.13918864,77335.0,77330.0,9.737e-05]
[1744135201436,0.01293,77336.0,77331.0,0.012931]
[1744135201639,0.271559,77331.0,77330.0,0.00979203]
[1744135201845,0.271559,77331.0,77330.0,9.737e-05]
[1744135202047,0.66335166,77331.0,77330.0,9.737e-05]
[1744135202270,0.7896103,77331.0,77330.0,0.00209737]
[1744135202688,0.75032184,77331.0,77330.0,0.00209737]
[1744135203046,0.3525042,77331.0,77330.0,0.26172837]
[1744135203246,0.012929,77345.0,77335.0,0.01293]
[1744135203447,0.258603,77339.0,77335.0,0.271544]
[1744135203649,0.13918764,77344.0,77337.0,0.258608]
[1744135203866,0.258589,77343.0,77339.0,0.01454085]
[1744135204089,0.258591,77343.0,77339.0,0.27314185]
[1744135204268,0.271521,77342.0,77338.0,0.01454085]
[1744135204426,0.258596,77341.0,77337.0,0.258608]
[1744135204626,0.258599,77340.0,77337.0,0.01454085]
[1744135204893,0.258551,77354.0,77350.0,0.258563]
[1744135205039,0.012928,77347.0,77342.0,0.01454085]
[1744135205244,0.258575,77347.0,77344.0,0.27312485]
[1744135205498,0.258544,77357.0,77348.0,0.012928]
[1744135205650,0.258556,77353.0,77349.0,0.467727]
[1744135205856,0.25856,77352.0,77349.0,0.20916]
[1744135206127,0.258548,77355.0,77349.0,0.480655]
[1744135206368,0.258552,77354.0,77350.0,0.258563]
[1744135206535,0.271469,77357.0,77351.0,0.258561]
[1744135206745,0.012927,77355.0,77354.0,0.01454085]
[1744135206963,0.01293,77338.0,77326.0,0.271575]
[1744135207110,0.271535,77338.0,77336.0,0.20916]
[1744135207307,0.01293,77337.0,77336.0,0.20916]
[1744135207548,0.13918864,77337.0,77336.0,0.20916]
[1744135207909,0.13923044,77337.0,77336.0,0.20916]
[1744135208134,0.12630044,77337.0,77336.0,0.20916]
[1744135208338,4.18e-05,77337.0,77336.0,0.480701]
[1744135208546,4.18e-05,77337.0,77336.0,0.49724185]
[1744135208917,4.18e-05,77337.0,77336.0,0.58684185]
[1744135209119,4.18e-05,77337.0,77336.0,0.71310049]
[1744135209488,0.0030418,77337.0,77336.0,0.71310049]
[1744135209814,0.0030418,77337.0,77336.0,0.73699974]
[1744135210057,0.0050418,77337.0,77336.0,0.74976718]
[1744135210577,0.0030418,77337.0,77336.0,0.73699974]
[1744135210781,0.0030418,77337.0,77336.0,0.6147411]
[1744135210940,0.2745798,77337.0,77336.0,0.02989925]
[1744135211146,0.40083844,77337.0,77336.0,0.006]
[1744135211349,0.271562,77330.0,77329.0,0.20916]
[1744135211544,0.41053476,77330.0,77329.0,0.20916]
[1744135211952,0.75053476,77330.0,77329.0,0.20916]
[1744135212155,0.25867,77319.0,77317.0,1.02424]
[1744135212352,0.352931,77329.0,77328.0,0.258638]
[1744135212353,0.34,77329.0,77328.0,0.258638]
[1744135212560,0.34,77329.0,77321.0,0.012933]
[1744135212561,0.258638,77328.0,77325.0,0.258648]
[1744135212806,0.258638,77328.0,77324.0,0.012932]
[1744135213008,0.258639,77328.0,77324.0,0.258651]
[1744135213309,0.01293,77339.0,77326.0,0.012932]
[1744135213508,0.13918864,77335.0,77327.0,0.258641]
[1744135213769,0.012931,77333.0,77327.0,0.012932]
[1744135213919,0.25863,77331.0,77327.0,0.271571]
[1744135214129,0.258632,77330.0,77326.0,0.258642]
[1744135214329,0.271568,77329.0,77325.0,0.258646]
[1744135214574,0.27158,77325.0,77324.0,0.002]
[1744135214910,0.271583,77324.0,77323.0,0.20916]
[1744135215603,0.258651,77324.0,77323.0,0.20916]
[1744135215986,0.13918964,77328.0,77323.0,0.20916]
[1744135216198,0.02587871,77332.0,77326.0,0.258643]
[1744135216387,0.258638,77328.0,77324.0,0.012932]
[1744135216589,0.258621,77333.0,77328.0,0.258638]
[1744135216791,0.012929,77342.0,77327.0,0.012932]
[1744135216792,0.01281414,77337.0,77334.0,0.01293]
[1744135216990,4.18e-05,77337.0,77335.0,0.258611]
[1744135217191,4.18e-05,77337.0,77336.0,0.258611]
[1744135217613,4.18e-05,77337.0,77336.0,0.271541]
[1744135218013,0.012931,77332.0,77321.0,0.01454085]
[1744135218213,0.271583,77324.0,77315.0,0.02747485]
[1744135218422,0.258671,77318.0,77312.0,0.0003348]
[1744135218616,0.271619,77314.0,77312.0,0.0003348]
[1744135218816,0.86042192,77314.0,77312.0,0.0003348]
[1744135219060,0.352934,77313.0,77312.0,6e-07]
[1744135219351,0.598732,77300.0,77299.0,6e-07]
[1744135219552,0.34,77293.0,77291.0,1.7e-07]
[1744135219749,0.73795364,77292.0,77291.0,1.7e-07]
[1744135220044,0.60545109,77292.0,77291.0,1.7e-07]
[1744135220547,0.60549285,77292.0,77291.0,1.7e-07]
[1744135220769,4.176e-05,77292.0,77291.0,0.01293817]
[1744135220949,0.00204176,77292.0,77291.0,0.01293817]
[1744135221089,0.34,77309.0,77299.0,0.012936]
[1744135221294,0.34,77305.0,77301.0,0.258727]
[1744135221526,0.34,77305.0,77301.0,0.271663]
[1744135221727,0.12625864,77308.0,77307.0,0.012935]
[1744135222155,0.12625864,77308.0,77307.0,0.271643]
[1744135222350,0.271619,77315.0,77310.0,0.012934]
[1744135222549,0.012934,77314.0,77307.0,0.258708]
[1744135222761,0.012934,77314.0,77307.0,0.012935]
[1744135223055,0.258706,77308.0,77304.0,0.02285993]
[1744135223402,0.12625864,77307.0,77304.0,0.258717]
[1744135223599,0.12625864,77307.0,77301.0,0.012936]
[1744135223753,0.271641,77308.0,77301.0,0.012936]
[1744135223754,0.003,77308.0,77301.0,0.012936]
[1744135223939,0.25871,77307.0,77302.0,0.271661]
[1744135224144,0.258713,77306.0,77301.0,0.258728]
[1744135224343,0.12925864,77308.0,77303.0,0.258721]
[1744135224543,0.001,77307.0,77304.0,0.258717]
[1744135224741,0.258713,77306.0,77301.0,0.012936]
[1744135224940,0.001,77307.0,77304.0,0.258717]
[1744135225432,0.08020545,77307.0,77301.0,0.271663]
[1744135225610,0.32597945,77307.0,77302.0,0.012936]
[1744135225808,0.06627045,77307.0,77304.0,0.258717]
[1744135226029,0.611639,77309.0,77305.0,0.258714]
[1744135226190,0.002,77307.0,77305.0,0.27165]
[1744135226391,0.34,77311.0,77306.0,0.258711]
[1744135226570,0.12625864,77311.0,77308.0,0.258703]
[1744135226778,0.012935,77305.0,77300.0,0.01454085]
[1744135227001,0.002,77307.0,77300.0,0.01454085]
[1744135227204,0.002,77307.0,77306.0,0.012935]
[1744135227520,0.352934,77311.0,77306.0,0.271647]
[1744135227672,0.34,77311.0,77309.0,0.012935]
[1744135227875,0.34,77315.0,77311.0,0.012934]
[1744135228088,0.01273514,77318.0,77317.0,0.012933]
[1744135228307,0.012931,77328.0,77321.0,0.012933]
[1744135228631,0.012933,77321.0,77312.0,0.25869]
[1744135228863,0.012932,77323.0,77318.0,0.25867]
[1744135229042,0.012932,77323.0,77317.0,0.258674]
[1744135229043,0.25866,77322.0,77317.0,0.258674]
[1744135229241,0.611593,77322.0,77311.0,0.21810857]
[1744135229441,0.271604,77319.0,77311.0,0.23113994]
[1744135229761,0.012933,77318.0,77312.0,0.271623]
[1744135229903,0.271598,77320.0,77313.0,0.271622]
[1744135230103,0.012933,77319.0,77312.0,0.012934]
[1744135230319,0.258689,77313.0,77311.0,0.21820594]
[1744135230512,0.012934,77315.0,77311.0,0.21820594]
[1744135230723,0.258689,77313.0,77311.0,0.21820594]
[1744135230915,0.012931,77332.0,77317.0,0.271608]
[1744135231119,0.387869,77346.0,77332.0,0.012931]
[1744135231120,0.258591,77342.0,77332.0,0.012931]
[1744135231318,0.12625864,77341.0,77338.0,0.258602]
[1744135231579,0.12625864,77341.0,77339.0,0.2586]
[1744135231730,0.012928,77348.0,77338.0,0.01293]
[1744135231731,0.271504,77347.0,77338.0,0.01293]
[1744135231932,0.047,77363.0,77350.0,0.258563]
[1744135231933,0.012927,77357.0,77350.0,0.258563]
[1744135232121,0.12625864,77356.0,77346.0,0.012928]
[1744135232317,0.12625864,77356.0,77344.0,0.012929]
[1744135232318,0.258565,77350.0,77345.0,0.012929]
[1744135232606,0.258565,77350.0,77329.0,0.01454085]
[1744135232607,0.258575,77347.0,77343.0,0.258587]
[1744135232740,0.271498,77349.0,77344.0,0.258583]
[1744135232938,0.28450785,77350.0,77344.0,0.258583]
[1744135232939,0.27157985,77350.0,77346.0,0.258577]
[1744135233356,0.012928,77349.0,77346.0,0.00977481]
[1744135233555,0.012929,77344.0,77337.0,0.258605]
[1744135233740,0.012929,77340.0,77332.0,0.02747185]
[1744135233942,0.012929,77340.0,77317.0,0.0493]
[1744135233943,0.352931,77331.0,77317.0,0.0493]
[1744135234182,0.56750074,77331.0,77321.0,0.00961694]
[1744135234438,0.56750074,77331.0,77308.0,0.02393329]
[1744135234684,0.56750074,77331.0,77310.0,0.258697]
[1744135234886,0.56750074,77331.0,77309.0,0.012935]
[1744135235042,0.56750074,77331.0,77310.0,0.012934]
[1744135235246,0.56750074,77331.0,77306.0,0.20852]
[1744135235247,0.56750074,77331.0,77301.0,0.012936]
[1744135235450,0.271682,77296.0,77295.0,0.0239631]
[1744135235859,0.73794064,77296.0,77295.0,0.0239631]
[1744135236170,0.352937,77295.0,77294.0,0.00012542]
[1744135236392,0.47919564,77295.0,77294.0,0.00012542]
[1744135236603,0.60545109,77295.0,77294.0,0.00012542]
[1744135237400,0.60845109,77295.0,77294.0,0.00012542]
[1744135237773,0.60845109,77295.0,77294.0,4.2e-07]
[1744135237981,0.352938,77291.0,77290.0,1.9e-07]
[1744135238155,0.352938,77291.0,77287.0,5.9e-07]
[1744135238156,0.012938,77288.0,77287.0,5.9e-07]
[1744135238294,0.86422409,77288.0,77287.0,0.00025211]
[1744135238703,0.73796864,77288.0,77287.0,0.00025211]
[1744135239663,0.74696864,77288.0,77287.0,0.00125211]
[1744135239818,0.75496864,77288.0,77287.0,0.00225211]
[1744135240224,0.74696864,77288.0,77287.0,0.00125211]
[1744135240620,0.75596864,77288.0,77287.0,0.00225211]
[1744135240828,0.48425864,77288.0,77287.0,0.00225211]
[1744135241034,0.349,77288.0,77287.0,0.00125211]
[1744135241214,0.009,77288.0,77287.0,0.01419011]
[1744135241422,0.018,77288.0,77287.0,0.01519011]
[1744135241628,0.018,77288.0,77287.0,0.03985524]
[1744135241830,0.009,77288.0,77287.0,0.16611353]
[1744135242167,0.026,77288.0,77287.0,0.16552621]
[1744135242367,0.017,77288.0,77287.0,0.188499]
[1744135242570,0.009,77288.0,77287.0,0.188499]
[1744135242771,0.021938,77288.0,77287.0,0.03476151]
[1744135242979,0.53673144,77288.0,77287.0,0.00625211]
[1744135243339,0.53573144,77288.0,77287.0,0.00025211]
[1744135243743,0.53673144,77288.0,77287.0,0.00525211]
[1744135244541,0.53673144,77288.0,77287.0,0.01025211]
[1744135244697,0.53673144,77288.0,77287.0,0.00525211]
[1744135245043,0.48919664,77288.0,77287.0,0.00625211]
[1744135245627,0.48819664,77288.0,77287.0,0.00125211]
[1744135245833,0.48819664,77288.0,77287.0,0.00225211]
[1744135246008,0.49319664,77288.0,77287.0,0.00225211]
[1744135246215,0.48419664,77288.0,77287.0,0.00125211]
[1744135246409,0.61045209,77288.0,77287.0,0.00125211]
[1744135246936,0.48419664,77288.0,77287.0,0.00125211]
[1744135247149,0.005,77288.0,77287.0,0.02873096]
[1744135247502,0.005,77288.0,77287.0,0.03131827]
[1744135247702,0.005,77288.0,77287.0,0.15757691]
[1744135247904,0.005,77288.0,77287.0,0.1675217]
[1744135248091,0.012,77288.0,77287.0,0.06367163]
[1744135248644,0.005,77288.0,77287.0,0.03867575]
[1744135248851,0.005,77288.0,77287.0,0.03967575]
[1744135249147,0.258738,77299.0,77294.0,0.258751]
[1744135249575,0.258739,77298.0,77292.0,0.012937]
[1744135249733,0.00719559,77299.0,77293.0,0.012937]
[1744135249943,0.258738,77298.0,77294.0,0.012937]
[1744135250136,0.00719559,77299.0,77290.0,0.20792]
[1744135250336,0.271673,77299.0,77294.0,0.258751]
[1744135250538,0.012936,77300.0,77294.0,0.258751]
[1744135250743,0.258727,77302.0,77296.0,0.012937]
[1744135250943,0.258735,77299.0,77293.0,0.273691]
[1744135251143,0.012936,77302.0,77295.0,0.258748]
[1744135251344,0.271662,77302.0,77298.0,0.258738]
[1744135251566,0.02571392,77309.0,77301.0,0.012936]
[1744135251768,0.271648,77306.0,77301.0,0.258727]
[1744135251969,0.012935,77304.0,77299.0,0.258735]
[1744135252374,0.012931,77330.0,77324.0,0.012932]
[1744135252622,0.12625864,77329.0,77325.0,0.258648]
[1744135252865,0.01295367,77330.0,77328.0,0.271569]
[1744135253118,0.01295367,77330.0,77329.0,0.271566]
[1744135253358,0.01293,77336.0,77329.0,0.271564]
[1744135253597,0.258627,77332.0,77329.0,0.258633]
[1744135253850,0.258624,77333.0,77329.0,0.258633]
[1744135254099,0.258621,77334.0,77330.0,0.258631]
[1744135254362,0.00041879,77336.0,77333.0,0.258621]
[1744135254606,0.00041879,77336.0,77332.0,0.258623]
[1744135254844,0.00341879,77336.0,77335.0,0.01293]
[1744135255094,0.00041879,77336.0,77335.0,0.01293]
[1744135255332,0.00041879,77336.0,77335.0,0.03005688]
[1744135255525,0.00041879,77336.0,77335.0,0.15631552]
[1744135255818,0.00041879,77336.0,77335.0,0.15372949]
[1744135256063,0.00041879,77336.0,77335.0,0.02747085]
[1744135256311,0.00041879,77336.0,77335.0,0.01293]
[1744135256800,0.00041879,77336.0,77335.0,0.01793]
[1744135256989,0.00441879,77336.0,77335.0,0.03247085]
[1744135257139,0.00041879,77336.0,77335.0,0.15631537]
[1744135257509,0.00041879,77336.0,77335.0,0.15572949]
[1744135257714,0.00041879,77336.0,77335.0,0.03147085]
[1744135258116,0.00041879,77336.0,77335.0,0.007]
[1744135258399,0.03929127,77336.0,77335.0,0.004]
[1744135258573,0.27195979,77336.0,77335.0,0.004]
[1744135258874,0.39821843,77336.0,77335.0,0.009]
[1744135259072,0.00041879,77336.0,77335.0,0.009]
[1744135259985,0.13960743,77336.0,77335.0,0.005]
[1744135260121,0.13960743,77336.0,77335.0,0.01]
[1744135260321,0.50231649,77336.0,77335.0,0.01]
[1744135260534,0.13960743,77336.0,77335.0,0.005]
[1744135260737,0.12667743,77336.0,77334.0,0.271545]
[1744135260934,0.00041879,77336.0,77335.0,0.01693]
[1744135261141,0.00041879,77336.0,77335.0,0.03147085]
[1744135261342,0.00041879,77336.0,77335.0,0.02847085]
[1744135261538,0.00141879,77336.0,77335.0,0.02847085]
[1744135261746,0.00141879,77336.0,77335.0,0.25331539]
[1744135262045,0.0001675,77375.0,77363.0,0.33398785]
[1744135262243,0.00029348,77364.0,77363.0,0.58982785]
[1744135262463,4.8e-07,77364.0,77363.0,0.71608649]
[1744135263297,6.8e-07,77365.0,77364.0,0.02746585]
[1744135263470,0.0001675,77375.0,77368.0,0.271429]
[1744135263471,6.8e-07,77369.0,77368.0,0.271429]
[1744135263682,6.8e-07,77369.0,77368.0,0.41222849]
[1744135263887,6.8e-07,77369.0,77368.0,0.43600585]
[1744135264087,6.8e-07,77369.0,77368.0,0.44789267]
[1744135264805,0.00100068,77369.0,77368.0,0.44500585]
[1744135265016,6.8e-07,77369.0,77368.0,0.44500585]
[1744135265210,6.8e-07,77369.0,77368.0,0.78500585]
[1744135265459,0.0001675,77376.0,77368.0,0.78500585]
[1744135265460,1e-06,77376.0,77375.0,0.012924]
[1744135265660,1e-06,77376.0,77375.0,0.13918264]
[1744135265780,1e-06,77376.0,77375.0,0.15372349]
[1744135266636,1e-06,77376.0,77375.0,0.1563077]
[1744135267119,0.002001,77376.0,77375.0,0.16872349]
[1744135267257,0.002001,77376.0,77375.0,0.1713076]
[1744135268297,0.002001,77376.0,77375.0,0.16872349]
[1744135268803,0.002001,77376.0,77375.0,0.015]
[1744135269117,0.002001,77376.0,77375.0,0.22272]
[1744135269602,0.014924,77376.0,77375.0,0.22272]
[1744135269775,0.013924,77376.0,77375.0,0.21572]
[1744135270181,0.013924,77376.0,77375.0,0.21972]
[1744135270498,0.47918264,77376.0,77375.0,0.004]
[1744135270718,0.60643809,77376.0,77375.0,1e-06]
[1744135271579,0.48018264,77376.0,77375.0,0.001001]
[1744135272188,0.47918264,77376.0,77375.0,0.001]
[1744135272396,0.47918264,77376.0,77375.0,1e-06]
[1744135272590,0.48718264,77376.0,77375.0,1e-06]
[1744135272907,0.012926,77360.0,77356.0,0.0097476]
[1744135273122,0.271449,77363.0,77358.0,0.258537]
[1744135273300,0.34,77366.0,77359.0,0.012926]
[1744135273507,0.012926,77362.0,77356.0,0.27159658]
[1744135273704,0.258529,77361.0,77357.0,0.25854]
[1744135274052,0.25854,77358.0,77356.0,0.00012558]
[1744135274197,0.012927,77357.0,77356.0,0.00012558]
[1744135274817,0.26031966,77359.0,77356.0,0.00012558]
[1744135275015,0.012927,77357.0,77356.0,0.00012558]
[1744135275388,0.012927,77357.0,77332.0,0.0001674]
[1744135275389,0.46625864,77357.0,77332.0,0.0001674]
[1744135275496,0.611552,77333.0,77332.0,0.0001674]
[1744135275691,0.80155184,77333.0,77332.0,0.0001674]
[1744135276152,0.80155184,77333.0,77332.0,4e-07]
[1744135276307,0.80155184,77333.0,77313.0,0.00985818]
[1744135276308,0.61159,77322.0,77321.0,1e-06]
[1744135276497,0.73784864,77322.0,77321.0,1e-06]
[1744135276697,0.73784864,77322.0,77292.0,0.01454085]
[1744135276698,0.258743,77297.0,77292.0,0.01454085]
[1744135276999,0.271646,77307.0,77292.0,0.00041879]
[1744135277246,0.13873945,77322.0,77319.0,0.258667]
[1744135277584,0.02148081,77322.0,77316.0,0.012933]
[1744135277714,0.009,77322.0,77318.0,0.271602]
[1744135277903,0.34,77323.0,77319.0,0.258667]
[1744135278117,0.012932,77322.0,77313.0,0.012934]
[1744135278349,0.34,77321.0,77317.0,0.258673]
[1744135278589,0.34,77321.0,77318.0,0.258669]